[Event "December 19 Late 2023"]
[Site "https://www.chess.com"]
[Date "2023.12.19"]
[Round "2"]
[White "Drygalov, Andrey"]
[Black "Akhayan, Ruben"]
[Result "1-0"]
[Board "103"]
[TimeControl "180+1"]
[WhiteFideId "24171735"]
[BlackFideId "204439"]
[WhiteElo "2477"]
[BlackElo "2141"]
[WhiteTeam "RUS"]
[BlackTeam "BEL"]
[WhiteClock "0:02:24"]
[BlackClock "0:01:48"]

1. e4 {[%clk 0:03:00]}  a6 {[%clk 0:02:59]} 2. d4 {[%clk 0:03:00]}  e6 {[%clk 0:02:59]} 3. Nf3 {[%clk 0:03:00]}  d5 {[%clk 0:02:59]} 4. Nbd2 {[%clk 0:02:58]}  Be7 {[%clk 0:02:57]} 5. Bd3 {[%clk 0:02:57]}  Nf6 {[%clk 0:02:55]} 6. e5 {[%clk 0:02:58]}  Nfd7 {[%clk 0:02:55]} 7. O-O {[%clk 0:02:58]}  c5 {[%clk 0:02:55]} 8. c3 {[%clk 0:02:58]}  Nc6 {[%clk 0:02:54]} 9. Re1 {[%clk 0:02:59]}  O-O {[%clk 0:02:53]} 10. Nf1 {[%clk 0:02:59]}  cxd4 {[%clk 0:02:43]} 11. cxd4 {[%clk 0:03:00]}  Qb6 {[%clk 0:02:42]} 12. Ng3 {[%clk 0:03:00]}  Nb4 {[%clk 0:02:42]} 13. Bb1 {[%clk 0:02:59]}  Re8 {[%clk 0:02:38]} 14. Be3 {[%clk 0:02:54]}  Nf8 {[%clk 0:02:38]} 15. h4 {[%clk 0:02:54]}  Bd7 {[%clk 0:02:37]} 16. h5 {[%clk 0:02:53]}  Rac8 {[%clk 0:02:36]} 17. a3 {[%clk 0:02:53]}  Nc6 {[%clk 0:02:33]} 18. Ra2 {[%clk 0:02:28]}  Na5 {[%clk 0:02:33]} 19. h6 {[%clk 0:02:27]}  g6 {[%clk 0:02:32]} 20. Bg5 {[%clk 0:02:27]}  Qb3 {[%clk 0:02:22]} 21. Qd2 {[%clk 0:02:27]}  Nc4 {[%clk 0:01:59]} 22. Qf4 {[%clk 0:02:27]}  Nxb2 {[%clk 0:01:55]} 23. Bxe7 {[%clk 0:02:24]}  Rxe7 {[%clk 0:01:48]} 24. Qf6 {[%clk 0:02:24]} 1-0

[Event "December 19 Late 2023"]
[Site "https://www.chess.com"]
[Date "2023.12.19"]
[Round "2"]
[White "Liascovich, Lucas"]
[Black "Malek, Omid"]
[Result "1-0"]
[Board "105"]
[TimeControl "180+1"]
[WhiteFideId "108634"]
[BlackFideId "2605384"]
[WhiteElo "2455"]
[BlackElo "2013"]
[WhiteTeam "ARG"]
[BlackTeam "CAN"]
[WhiteClock "0:00:20"]
[BlackClock "0:00:06"]

1. d4 {[%clk 0:01:17]}  f5 {[%clk 0:02:51]} 2. Nf3 {[%clk 0:01:18]}  Nf6 {[%clk 0:02:51]} 3. g3 {[%clk 0:01:19]}  g6 {[%clk 0:02:51]} 4. Bg2 {[%clk 0:01:20]}  Bg7 {[%clk 0:02:50]} 5. O-O {[%clk 0:01:21]}  O-O {[%clk 0:02:51]} 6. b3 {[%clk 0:01:21]}  d5 {[%clk 0:02:51]} 7. Bb2 {[%clk 0:01:21]}  e6 {[%clk 0:02:51]} 8. Nbd2 {[%clk 0:01:20]}  Nbd7 {[%clk 0:02:47]} 9. c4 {[%clk 0:01:19]}  c6 {[%clk 0:02:47]} 10. b4 {[%clk 0:01:17]}  Ne4 {[%clk 0:02:46]} 11. e3 {[%clk 0:01:16]}  g5 {[%clk 0:02:38]} 12. Nxe4 {[%clk 0:01:13]}  dxe4 {[%clk 0:02:38]} 13. Ne5 {[%clk 0:01:13]}  Nxe5 {[%clk 0:02:36]} 14. dxe5 {[%clk 0:01:13]}  Qe8 {[%clk 0:02:35]} 15. Qb3 {[%clk 0:01:11]}  h5 {[%clk 0:02:33]} 16. f3 {[%clk 0:01:05]}  exf3 {[%clk 0:02:32]} 17. Bxf3 {[%clk 0:01:06]}  h4 {[%clk 0:02:29]} 18. gxh4 {[%clk 0:01:02]}  g4 {[%clk 0:02:29]} 19. Bg2 {[%clk 0:01:02]}  Qh5 {[%clk 0:02:28]} 20. Bc3 {[%clk 0:00:55]}  Qxh4 {[%clk 0:02:22]} 21. Rad1 {[%clk 0:00:54]}  Bh6 {[%clk 0:02:14]} 22. Rf4 {[%clk 0:00:46]}  Bxf4 {[%clk 0:02:08]} 23. exf4 {[%clk 0:00:47]}  Rd8 {[%clk 0:02:02]} 24. Rd6 {[%clk 0:00:45]}  Rxd6 {[%clk 0:01:58]} 25. exd6 {[%clk 0:00:44]}  g3 {[%clk 0:01:59]} 26. hxg3 {[%clk 0:00:42]}  Qxg3 {[%clk 0:01:59]} 27. Qb2 {[%clk 0:00:34]}  Bd7 {[%clk 0:01:52]} 28. Be5 {[%clk 0:00:32]}  Rf8 {[%clk 0:01:51]} 29. Qf2 {[%clk 0:00:29]}  Qg4 {[%clk 0:01:36]} 30. Qxa7 {[%clk 0:00:27]}  Qd1+ {[%clk 0:01:16]} 31. Kh2 {[%clk 0:00:28]}  Qh5+ {[%clk 0:01:13]} 32. Kg1 {[%clk 0:00:28]}  Qd1+ {[%clk 0:01:12]} 33. Kh2 {[%clk 0:00:27]}  Kf7 {[%clk 0:01:11]} 34. Qxb7 {[%clk 0:00:25]}  Qh5+ {[%clk 0:01:07]} 35. Kg1 {[%clk 0:00:26]}  Qd1+ {[%clk 0:01:06]} 36. Kh2 {[%clk 0:00:25]}  Qh5+ {[%clk 0:00:55]} 37. Kg3 {[%clk 0:00:25]}  Rg8+ {[%clk 0:00:54]} 38. Kf2 {[%clk 0:00:26]}  Qh4+ {[%clk 0:00:53]} 39. Kf1 {[%clk 0:00:24]}  Rd8 {[%clk 0:00:24]} 40. Qb6 {[%clk 0:00:24]}  Ke8 {[%clk 0:00:16]} 41. a3 {[%clk 0:00:18]}  Ra8 {[%clk 0:00:15]} 42. Qe3 {[%clk 0:00:16]}  Qg4 {[%clk 0:00:13]} 43. Kf2 {[%clk 0:00:15]}  Qh4+ {[%clk 0:00:08]} 44. Ke2 {[%clk 0:00:15]}  Qg4+ {[%clk 0:00:08]} 45. Bf3 {[%clk 0:00:14]}  Qh4 {[%clk 0:00:08]} 46. b5 {[%clk 0:00:14]}  Qh2+ {[%clk 0:00:07]} 47. Qf2 {[%clk 0:00:15]}  Qxf2+ {[%clk 0:00:07]} 48. Kxf2 {[%clk 0:00:16]}  Rc8 {[%clk 0:00:07]} 49. b6 {[%clk 0:00:16]}  Rb8 {[%clk 0:00:07]} 50. Bd4 {[%clk 0:00:16]}  Ra8 {[%clk 0:00:07]} 51. Bc5 {[%clk 0:00:16]}  Rb8 {[%clk 0:00:07]} 52. Bd1 {[%clk 0:00:15]}  Ra8 {[%clk 0:00:07]} 53. a4 {[%clk 0:00:16]}  Kd8 {[%clk 0:00:07]} 54. Bb4 {[%clk 0:00:15]}  Kc8 {[%clk 0:00:08]} 55. c5 {[%clk 0:00:16]}  Kb7 {[%clk 0:00:08]} 56. a5 {[%clk 0:00:17]}  Rg8 {[%clk 0:00:09]} 57. Be2 {[%clk 0:00:17]}  Rh8 {[%clk 0:00:08]} 58. Bd2 {[%clk 0:00:18]}  Ra8 {[%clk 0:00:07]} 59. Ke3 {[%clk 0:00:18]}  e5 {[%clk 0:00:06]} 60. fxe5 {[%clk 0:00:17]}  Rg8 {[%clk 0:00:06]} 61. a6+ {[%clk 0:00:17]}  Ka8 {[%clk 0:00:06]} 62. Kd4 {[%clk 0:00:18]}  Rg2 {[%clk 0:00:05]} 63. Kd3 {[%clk 0:00:17]}  Rg3+ {[%clk 0:00:05]} 64. Kc2 {[%clk 0:00:17]}  Rg2 {[%clk 0:00:05]} 65. Bc4 {[%clk 0:00:18]}  Rg3 {[%clk 0:00:04]} 66. e6 {[%clk 0:00:18]}  Bxe6 {[%clk 0:00:04]} 67. Bxe6 {[%clk 0:00:19]}  f4 {[%clk 0:00:04]} 68. d7 {[%clk 0:00:19]}  Rg8 {[%clk 0:00:05]} 69. Bxg8 {[%clk 0:00:19]}  f3 {[%clk 0:00:06]} 70. d8=Q# {[%clk 0:00:20]} 1-0

[Event "December 19 Late 2023"]
[Site "https://www.chess.com"]
[Date "2023.12.19"]
[Round "2"]
[White "Becerra, Juan David"]
[Black "Hamidi, Amir Mohammad"]
[Result "0-1"]
[Board "106"]
[TimeControl "180+1"]
[WhiteFideId "4404998"]
[BlackFideId "12563285"]
[WhiteElo "2293"]
[BlackElo "2217"]
[WhiteTeam "COL"]
[BlackTeam "IRI"]
[WhiteClock "0:00:04"]
[BlackClock "0:00:16"]

1. d4 {[%clk 0:03:00]}  Nf6 {[%clk 0:02:59]} 2. Nc3 {[%clk 0:03:01]}  d5 {[%clk 0:02:58]} 3. Bf4 {[%clk 0:03:00]}  c5 {[%clk 0:02:59]} 4. e3 {[%clk 0:02:59]}  g6 {[%clk 0:02:50]} 5. Nf3 {[%clk 0:02:58]}  Bg7 {[%clk 0:02:50]} 6. Be2 {[%clk 0:02:57]}  O-O {[%clk 0:02:50]} 7. O-O {[%clk 0:02:58]}  cxd4 {[%clk 0:02:46]} 8. exd4 {[%clk 0:02:58]}  Nc6 {[%clk 0:02:46]} 9. Re1 {[%clk 0:02:54]}  Bf5 {[%clk 0:02:45]} 10. Ne5 {[%clk 0:02:50]}  Rc8 {[%clk 0:02:44]} 11. g4 {[%clk 0:02:33]}  Be6 {[%clk 0:02:40]} 12. Qd3 {[%clk 0:02:21]}  Bxg4 {[%clk 0:02:22]} 13. Nxg4 {[%clk 0:02:16]}  Nb4 {[%clk 0:02:13]} 14. Nxf6+ {[%clk 0:01:59]}  Bxf6 {[%clk 0:02:12]} 15. Qd2 {[%clk 0:01:55]}  Qb6 {[%clk 0:02:04]} 16. a3 {[%clk 0:01:43]}  Nc6 {[%clk 0:01:55]} 17. Nxd5 {[%clk 0:01:42]}  Qxd4 {[%clk 0:01:45]} 18. Nxf6+ {[%clk 0:01:31]}  Qxf6 {[%clk 0:01:42]} 19. c3 {[%clk 0:01:20]}  Rfd8 {[%clk 0:01:41]} 20. Qe3 {[%clk 0:01:17]}  Rd5 {[%clk 0:01:21]} 21. Bg3 {[%clk 0:00:49]}  h5 {[%clk 0:01:14]} 22. h4 {[%clk 0:00:43]}  Rcd8 {[%clk 0:01:10]} 23. Bf3 {[%clk 0:00:42]}  Rd3 {[%clk 0:01:04]} 24. Qg5 {[%clk 0:00:16]}  Qxf3 {[%clk 0:00:54]} 25. Rf1 {[%clk 0:00:07]}  Rd1 {[%clk 0:00:41]} 26. Raxd1 {[%clk 0:00:06]}  Rxd1 {[%clk 0:00:40]} 27. Rxd1 {[%clk 0:00:05]}  Qxd1+ {[%clk 0:00:41]} 28. Kh2 {[%clk 0:00:06]}  Qe2 {[%clk 0:00:21]} 29. Qb5 {[%clk 0:00:04]}  Qxb5 {[%clk 0:00:16]} 0-1

[Event "December 19 Late 2023"]
[Site "https://www.chess.com"]
[Date "2023.12.19"]
[Round "2"]
[White "Wieczorek, Oskar"]
[Black "Zhukov, Maksim"]
[Result "1-0"]
[Board "107"]
[TimeControl "180+1"]
[WhiteFideId "1133950"]
[BlackFideId "34181790"]
[WhiteElo "2407"]
[BlackElo "1925"]
[WhiteTeam "POL"]
[BlackTeam "RUS"]
[WhiteClock "0:02:09"]
[BlackClock "0:00:30"]

1. e4 {[%clk 0:03:00]}  c5 {[%clk 0:02:49]} 2. Nf3 {[%clk 0:03:00]}  e6 {[%clk 0:02:48]} 3. g3 {[%clk 0:03:00]}  a6 {[%clk 0:02:47]} 4. Bg2 {[%clk 0:03:00]}  b5 {[%clk 0:02:48]} 5. O-O {[%clk 0:03:00]}  Bb7 {[%clk 0:02:49]} 6. Re1 {[%clk 0:03:01]}  Qc7 {[%clk 0:02:48]} 7. c3 {[%clk 0:03:02]}  Nf6 {[%clk 0:02:47]} 8. d4 {[%clk 0:03:02]}  cxd4 {[%clk 0:02:47]} 9. cxd4 {[%clk 0:03:02]}  Be7 {[%clk 0:02:46]} 10. d5 {[%clk 0:03:02]}  Bc5 {[%clk 0:02:43]} 11. d6 {[%clk 0:02:54]}  Bxf2+ {[%clk 0:02:32]} 12. Kxf2 {[%clk 0:02:54]}  Ng4+ {[%clk 0:02:32]} 13. Kf1 {[%clk 0:02:49]}  Qb6 {[%clk 0:02:31]} 14. Re2 {[%clk 0:02:31]}  Bxe4 {[%clk 0:02:24]} 15. h3 {[%clk 0:02:26]}  Nf6 {[%clk 0:02:06]} 16. Nc3 {[%clk 0:02:23]}  Qb7 {[%clk 0:01:48]} 17. Nxe4 {[%clk 0:02:16]}  Nxe4 {[%clk 0:01:46]} 18. Bf4 {[%clk 0:02:16]}  f5 {[%clk 0:01:34]} 19. Kg1 {[%clk 0:02:12]}  Qb6+ {[%clk 0:01:32]} 20. Kh2 {[%clk 0:02:12]}  h6 {[%clk 0:01:28]} 21. Qd4 {[%clk 0:02:11]}  Qxd4 {[%clk 0:01:21]} 22. Nxd4 {[%clk 0:02:12]}  g5 {[%clk 0:01:19]} 23. Be5 {[%clk 0:02:12]}  Rg8 {[%clk 0:01:16]} 24. Bxe4 {[%clk 0:02:11]}  fxe4 {[%clk 0:01:17]} 25. Rxe4 {[%clk 0:02:12]}  Nc6 {[%clk 0:00:44]} 26. Nxc6 {[%clk 0:02:11]}  dxc6 {[%clk 0:00:45]} 27. Rf1 {[%clk 0:02:11]}  Kd7 {[%clk 0:00:46]} 28. Rf7+ {[%clk 0:02:11]}  Ke8 {[%clk 0:00:45]} 29. Re7+ {[%clk 0:02:11]}  Kd8 {[%clk 0:00:42]} 30. Bf6 {[%clk 0:02:11]}  Kc8 {[%clk 0:00:41]} 31. R4xe6 {[%clk 0:02:11]}  Kb8 {[%clk 0:00:36]} 32. Re8+ {[%clk 0:02:10]}  Kb7 {[%clk 0:00:30]} 33. d7 {[%clk 0:02:09]} 1-0

[Event "December 19 Late 2023"]
[Site "https://www.chess.com"]
[Date "2023.12.19"]
[Round "2"]
[White "Martinez Ramirez, Lennis"]
[Black "Semenenko, Dmytry"]
[Result "0-1"]
[Board "110"]
[TimeControl "180+1"]
[WhiteFideId "3509079"]
[BlackFideId "14118645"]
[WhiteElo "2405"]
[BlackElo "2113"]
[WhiteTeam "CUB"]
[BlackTeam "UKR"]
[WhiteClock "0:00:24"]
[BlackClock "0:00:52"]

1. d4 {[%clk 0:03:00]}  d5 {[%clk 0:03:00]} 2. Nf3 {[%clk 0:03:01]}  Nf6 {[%clk 0:02:59]} 3. g3 {[%clk 0:03:00]}  c6 {[%clk 0:02:58]} 4. Bg2 {[%clk 0:03:01]}  h6 {[%clk 0:02:58]} 5. O-O {[%clk 0:03:01]}  Bf5 {[%clk 0:02:59]} 6. c4 {[%clk 0:03:02]}  e6 {[%clk 0:02:59]} 7. Qb3 {[%clk 0:03:02]}  Qb6 {[%clk 0:02:58]} 8. c5 {[%clk 0:03:03]}  Qxb3 {[%clk 0:02:58]} 9. axb3 {[%clk 0:03:03]}  Ne4 {[%clk 0:02:59]} 10. b4 {[%clk 0:03:03]}  Nd7 {[%clk 0:02:57]} 11. Nfd2 {[%clk 0:02:57]}  a6 {[%clk 0:02:53]} 12. Nb3 {[%clk 0:02:57]}  e5 {[%clk 0:02:49]} 13. f3 {[%clk 0:02:51]}  Nef6 {[%clk 0:02:46]} 14. Nc3 {[%clk 0:02:47]}  Bc2 {[%clk 0:02:41]} 15. dxe5 {[%clk 0:02:34]}  Bxb3 {[%clk 0:02:38]} 16. exf6 {[%clk 0:02:35]}  Nxf6 {[%clk 0:02:38]} 17. Be3 {[%clk 0:02:29]}  g6 {[%clk 0:02:15]} 18. Bd4 {[%clk 0:02:29]}  Bg7 {[%clk 0:02:15]} 19. Rfc1 {[%clk 0:02:29]}  O-O {[%clk 0:02:13]} 20. Ra3 {[%clk 0:02:29]}  Bc4 {[%clk 0:02:09]} 21. b3 {[%clk 0:02:29]}  Bb5 {[%clk 0:02:09]} 22. Nxb5 {[%clk 0:02:23]}  axb5 {[%clk 0:02:09]} 23. Rca1 {[%clk 0:02:23]}  Rxa3 {[%clk 0:02:09]} 24. Rxa3 {[%clk 0:02:24]}  Re8 {[%clk 0:02:09]} 25. e3 {[%clk 0:02:24]}  Nd7 {[%clk 0:02:06]} 26. Kf2 {[%clk 0:02:22]}  Ne5 {[%clk 0:02:03]} 27. Bf1 {[%clk 0:02:18]}  g5 {[%clk 0:01:56]} 28. Ra7 {[%clk 0:02:18]}  Re7 {[%clk 0:01:54]} 29. Ra8+ {[%clk 0:01:54]}  Kh7 {[%clk 0:01:53]} 30. h3 {[%clk 0:01:48]}  h5 {[%clk 0:01:50]} 31. f4 {[%clk 0:01:45]}  gxf4 {[%clk 0:01:41]} 32. gxf4 {[%clk 0:01:45]}  Ng6 {[%clk 0:01:37]} 33. Bd3 {[%clk 0:01:45]}  Bxd4 {[%clk 0:01:32]} 34. exd4 {[%clk 0:01:46]}  Kg7 {[%clk 0:01:32]} 35. Bxg6 {[%clk 0:01:19]}  Kxg6 {[%clk 0:01:27]} 36. Rg8+ {[%clk 0:01:19]}  Kf5 {[%clk 0:01:26]} 37. Kf3 {[%clk 0:01:19]}  Re4 {[%clk 0:01:19]} 38. Rg5+ {[%clk 0:01:19]}  Kf6 {[%clk 0:01:20]} 39. Rxh5 {[%clk 0:01:19]}  Rxd4 {[%clk 0:01:20]} 40. Rh6+ {[%clk 0:01:10]}  Kg7 {[%clk 0:01:13]} 41. Rd6 {[%clk 0:01:07]}  Rxb4 {[%clk 0:01:14]} 42. h4 {[%clk 0:01:01]}  Rxb3+ {[%clk 0:01:14]} 43. Kg4 {[%clk 0:01:02]}  b4 {[%clk 0:01:13]} 44. h5 {[%clk 0:01:02]}  Rb1 {[%clk 0:01:12]} 45. Rd7 {[%clk 0:01:02]}  b3 {[%clk 0:01:08]} 46. Rxb7 {[%clk 0:01:01]}  Kf6 {[%clk 0:01:08]} 47. Rb6 {[%clk 0:01:00]}  b2 {[%clk 0:01:07]} 48. Rxc6+ {[%clk 0:01:00]}  Kg7 {[%clk 0:01:05]} 49. h6+ {[%clk 0:01:00]}  Kh7 {[%clk 0:01:05]} 50. Rb6 {[%clk 0:00:30]}  Rg1+ {[%clk 0:01:04]} 51. Kf5 {[%clk 0:00:31]}  b1=Q+ {[%clk 0:01:04]} 52. Rxb1 {[%clk 0:00:32]}  Rxb1 {[%clk 0:01:03]} 53. Ke5 {[%clk 0:00:33]}  Rd1 {[%clk 0:00:54]} 54. c6 {[%clk 0:00:32]}  Kxh6 {[%clk 0:00:54]} 55. c7 {[%clk 0:00:26]}  Rc1 {[%clk 0:00:53]} 56. Kd6 {[%clk 0:00:24]}  d4 {[%clk 0:00:52]} 0-1

[Event "December 19 Late 2023"]
[Site "https://www.chess.com"]
[Date "2023.12.19"]
[Round "2"]
[White "Guerra Tulcan, Lenin"]
[Black "Skibbe, Willi"]
[Result "1/2-1/2"]
[Board "112"]
[TimeControl "180+1"]
[WhiteFideId "3601382"]
[BlackFideId "4682190"]
[WhiteElo "2368"]
[BlackElo "2363"]
[WhiteTeam "ECU"]
[BlackTeam "GER"]
[WhiteClock "0:00:17"]
[BlackClock "0:00:15"]

1. e4 {[%clk 0:03:00]}  e5 {[%clk 0:02:59]} 2. Nf3 {[%clk 0:02:58]}  Nc6 {[%clk 0:02:58]} 3. Bb5 {[%clk 0:02:57]}  a6 {[%clk 0:02:57]} 4. Ba4 {[%clk 0:02:57]}  Nf6 {[%clk 0:02:57]} 5. Qe2 {[%clk 0:02:56]}  b5 {[%clk 0:02:56]} 6. Bb3 {[%clk 0:02:55]}  Be7 {[%clk 0:02:57]} 7. O-O {[%clk 0:02:53]}  O-O {[%clk 0:02:57]} 8. c3 {[%clk 0:02:52]}  d5 {[%clk 0:02:55]} 9. d3 {[%clk 0:02:51]}  dxe4 {[%clk 0:02:50]} 10. dxe4 {[%clk 0:02:50]}  Bd6 {[%clk 0:02:50]} 11. Rd1 {[%clk 0:02:46]}  Qe7 {[%clk 0:02:48]} 12. Nbd2 {[%clk 0:02:44]}  Na5 {[%clk 0:02:39]} 13. Bc2 {[%clk 0:02:42]}  Bg4 {[%clk 0:02:27]} 14. Nf1 {[%clk 0:02:39]}  Nd7 {[%clk 0:02:21]} 15. h3 {[%clk 0:02:37]}  Be6 {[%clk 0:02:21]} 16. Ne3 {[%clk 0:02:14]}  f6 {[%clk 0:02:10]} 17. Nh4 {[%clk 0:02:04]}  g6 {[%clk 0:02:06]} 18. Nd5 {[%clk 0:01:49]}  Qf7 {[%clk 0:02:04]} 19. a4 {[%clk 0:01:41]}  c6 {[%clk 0:01:47]} 20. Nxf6+ {[%clk 0:01:04]}  Qxf6 {[%clk 0:01:38]} 21. Rxd6 {[%clk 0:01:04]}  Nc4 {[%clk 0:01:35]} 22. Rxe6 {[%clk 0:00:43]}  Qxe6 {[%clk 0:01:35]} 23. Bb3 {[%clk 0:00:43]}  Nc5 {[%clk 0:01:20]} 24. Ba2 {[%clk 0:00:40]}  Qf6 {[%clk 0:01:14]} 25. Nf3 {[%clk 0:00:37]}  Kh8 {[%clk 0:00:44]} 26. Bxc4 {[%clk 0:00:36]}  bxc4 {[%clk 0:00:45]} 27. Qxc4 {[%clk 0:00:36]}  Qd6 {[%clk 0:00:41]} 28. Be3 {[%clk 0:00:34]}  Ne6 {[%clk 0:00:38]} 29. b4 {[%clk 0:00:22]}  Nf4 {[%clk 0:00:37]} 30. Nxe5 {[%clk 0:00:17]}  Rae8 {[%clk 0:00:28]} 31. Bd4 {[%clk 0:00:17]}  Rxe5 {[%clk 0:00:23]} 32. Bxe5+ {[%clk 0:00:17]}  Qxe5 {[%clk 0:00:23]} 33. Rd1 {[%clk 0:00:16]}  Qg5 {[%clk 0:00:20]} 34. g3 {[%clk 0:00:16]}  Nxh3+ {[%clk 0:00:20]} 35. Kg2 {[%clk 0:00:16]}  Rxf2+ {[%clk 0:00:20]} 36. Kh1 {[%clk 0:00:15]}  Ng1 {[%clk 0:00:16]} 37. Qd4+ {[%clk 0:00:15]}  Kg8 {[%clk 0:00:15]} 38. Qxf2 {[%clk 0:00:15]}  Qh5+ {[%clk 0:00:14]} 39. Kxg1 {[%clk 0:00:14]}  Qxd1+ {[%clk 0:00:15]} 40. Kg2 {[%clk 0:00:15]}  Qd3 {[%clk 0:00:14]} 41. Qd4 {[%clk 0:00:15]}  Qe2+ {[%clk 0:00:13]} 42. Kh3 {[%clk 0:00:15]}  Qf1+ {[%clk 0:00:14]} 43. Kh2 {[%clk 0:00:15]}  Qe2+ {[%clk 0:00:14]} 44. Kg1 {[%clk 0:00:16]}  Qe1+ {[%clk 0:00:14]} 45. Kg2 {[%clk 0:00:16]}  Qe2+ {[%clk 0:00:14]} 46. Kh3 {[%clk 0:00:17]}  Qh5+ {[%clk 0:00:14]} 47. Kg2 {[%clk 0:00:17]}  Qe2+ {[%clk 0:00:15]} 1/2-1/2

[Event "December 19 Late 2023"]
[Site "https://www.chess.com"]
[Date "2023.12.19"]
[Round "2"]
[White "Manolache, Marius"]
[Black "Chess_Star1234"]
[Result "1-0"]
[Board "115"]
[TimeControl "180+1"]
[WhiteFideId "1201530"]
[WhiteElo "2364"]
[BlackElo "2357"]
[WhiteTeam "ROU"]
[WhiteClock "0:01:05"]
[BlackClock "0:00:04"]

1. d4 {[%clk 0:03:00]}  d5 {[%clk 0:02:53]} 2. c4 {[%clk 0:03:00]}  e6 {[%clk 0:02:54]} 3. Nc3 {[%clk 0:02:59]}  Be7 {[%clk 0:02:54]} 4. Bf4 {[%clk 0:02:59]}  Nf6 {[%clk 0:02:52]} 5. e3 {[%clk 0:02:58]}  O-O {[%clk 0:02:52]} 6. Rc1 {[%clk 0:02:58]}  a6 {[%clk 0:02:28]} 7. cxd5 {[%clk 0:02:55]}  exd5 {[%clk 0:02:27]} 8. Bd3 {[%clk 0:02:52]}  c6 {[%clk 0:02:22]} 9. h3 {[%clk 0:02:51]}  Nbd7 {[%clk 0:02:19]} 10. Nf3 {[%clk 0:02:50]}  Re8 {[%clk 0:02:18]} 11. O-O {[%clk 0:02:50]}  Nb6 {[%clk 0:02:16]} 12. Re1 {[%clk 0:02:45]}  Be6 {[%clk 0:02:15]} 13. b3 {[%clk 0:02:43]}  Ba3 {[%clk 0:02:12]} 14. Rc2 {[%clk 0:02:43]}  h6 {[%clk 0:02:04]} 15. Qb1 {[%clk 0:02:41]}  a5 {[%clk 0:01:57]} 16. Rce2 {[%clk 0:02:40]}  Bb4 {[%clk 0:01:56]} 17. Qb2 {[%clk 0:02:33]}  Qd7 {[%clk 0:01:48]} 18. Ne5 {[%clk 0:02:31]}  Qc8 {[%clk 0:01:49]} 19. a3 {[%clk 0:02:27]}  Bf8 {[%clk 0:01:35]} 20. f3 {[%clk 0:02:24]}  a4 {[%clk 0:01:25]} 21. b4 {[%clk 0:02:23]}  Nfd7 {[%clk 0:01:13]} 22. Ng4 {[%clk 0:02:19]}  Bxg4 {[%clk 0:01:10]} 23. hxg4 {[%clk 0:02:18]}  Nc4 {[%clk 0:00:52]} 24. Qc1 {[%clk 0:02:14]}  b5 {[%clk 0:00:51]} 25. Bb1 {[%clk 0:02:11]}  Ndb6 {[%clk 0:00:48]} 26. Kf2 {[%clk 0:02:01]}  Ra7 {[%clk 0:00:24]} 27. Rh1 {[%clk 0:01:59]}  Rae7 {[%clk 0:00:20]} 28. g5 {[%clk 0:01:59]}  Qe6 {[%clk 0:00:13]} 29. e4 {[%clk 0:01:42]}  g6 {[%clk 0:00:06]} 30. gxh6 {[%clk 0:01:39]}  Qd7 {[%clk 0:00:05]} 31. e5 {[%clk 0:01:38]}  Kh7 {[%clk 0:00:05]} 32. g4 {[%clk 0:01:36]}  Qe6 {[%clk 0:00:05]} 33. Nd1 {[%clk 0:01:30]}  f6 {[%clk 0:00:05]} 34. Bd3 {[%clk 0:01:26]}  fxe5 {[%clk 0:00:05]} 35. Bxe5 {[%clk 0:01:26]}  Nxe5 {[%clk 0:00:05]} 36. Rxe5 {[%clk 0:01:26]}  Qf6 {[%clk 0:00:05]} 37. g5 {[%clk 0:01:26]}  Qf7 {[%clk 0:00:04]} 38. Rxe7 {[%clk 0:01:23]}  Bxe7 {[%clk 0:00:04]} 39. Rg1 {[%clk 0:01:09]}  Nc4 {[%clk 0:00:04]} 40. Ne3 {[%clk 0:01:10]}  Bd6 {[%clk 0:00:03]} 41. Ng4 {[%clk 0:01:07]}  Bf4 {[%clk 0:00:02]} 42. Nf6+ {[%clk 0:01:07]}  Qxf6 {[%clk 0:00:03]} 43. gxf6 {[%clk 0:01:07]}  Bxc1 {[%clk 0:00:03]} 44. Rxc1 {[%clk 0:01:07]}  Kxh6 {[%clk 0:00:04]} 45. f4 {[%clk 0:01:05]}  g5 {[%clk 0:00:04]} 46. Rh1# {[%clk 0:01:05]} 1-0

[Event "December 19 Late 2023"]
[Site "https://www.chess.com"]
[Date "2023.12.19"]
[Round "2"]
[White "Botez, Alexandra"]
[Black "Mokshanov, Alexey"]
[Result "0-1"]
[Board "119"]
[TimeControl "180+1"]
[WhiteFideId "2603365"]
[BlackFideId "24121657"]
[WhiteElo "2040"]
[BlackElo "2278"]
[WhiteTeam "CAN"]
[BlackTeam "RUS"]
[WhiteClock "0:01:08"]
[BlackClock "0:00:59"]

1. d4 {[%clk 0:02:59]}  d5 {[%clk 0:02:59]} 2. Nf3 {[%clk 0:02:53]}  Nf6 {[%clk 0:02:59]} 3. g3 {[%clk 0:02:51]}  Bf5 {[%clk 0:02:56]} 4. Bg2 {[%clk 0:02:51]}  c6 {[%clk 0:02:57]} 5. O-O {[%clk 0:02:51]}  Nbd7 {[%clk 0:02:57]} 6. Nbd2 {[%clk 0:02:50]}  h6 {[%clk 0:02:57]} 7. c3 {[%clk 0:02:47]}  e6 {[%clk 0:02:58]} 8. Re1 {[%clk 0:02:47]}  Be7 {[%clk 0:02:55]} 9. Ne5 {[%clk 0:02:47]}  Nxe5 {[%clk 0:02:53]} 10. dxe5 {[%clk 0:02:47]}  Nd7 {[%clk 0:02:53]} 11. f4 {[%clk 0:02:47]}  Nc5 {[%clk 0:02:36]} 12. b4 {[%clk 0:02:36]}  Ne4 {[%clk 0:02:33]} 13. Nxe4 {[%clk 0:02:36]}  Bxe4 {[%clk 0:02:19]} 14. Bxe4 {[%clk 0:02:35]}  dxe4 {[%clk 0:02:20]} 15. e3 {[%clk 0:02:36]}  Qd3 {[%clk 0:02:15]} 16. Qxd3 {[%clk 0:02:19]}  exd3 {[%clk 0:02:16]} 17. Bd2 {[%clk 0:02:19]}  O-O-O {[%clk 0:02:09]} 18. Kf2 {[%clk 0:02:18]}  c5 {[%clk 0:02:07]} 19. c4 {[%clk 0:02:13]}  cxb4 {[%clk 0:02:07]} 20. Reb1 {[%clk 0:02:07]}  a5 {[%clk 0:02:00]} 21. a3 {[%clk 0:02:07]}  bxa3 {[%clk 0:02:00]} 22. Bxa5 {[%clk 0:02:06]}  Rd7 {[%clk 0:01:59]} 23. Ke1 {[%clk 0:02:01]}  Kb8 {[%clk 0:01:56]} 24. Kd2 {[%clk 0:02:01]}  Rc8 {[%clk 0:01:56]} 25. Kc3 {[%clk 0:01:57]}  d2 {[%clk 0:01:42]} 26. Rd1 {[%clk 0:01:56]}  b5 {[%clk 0:01:42]} 27. Rab1 {[%clk 0:01:38]}  Rxc4+ {[%clk 0:01:40]} 28. Kb3 {[%clk 0:01:39]}  Rd3+ {[%clk 0:01:07]} 29. Ka2 {[%clk 0:01:37]}  b4 {[%clk 0:01:05]} 30. Rb3 {[%clk 0:01:14]}  Rc2+ {[%clk 0:01:00]} 31. Kb1 {[%clk 0:01:08]}  Rc1+ {[%clk 0:00:59]} 0-1